bitfinex-derivatives/quotes_BTCF0:USTF0_20240902
["timestamp","ask_amount","ask_price","bid_price","bid_amount"]
[1725281933992,0.0174,58418.0,58417.0,1.08314842]
[1725281934993,0.0174,58418.0,58417.0,2.19670842]
[1725281935194,0.0174,58418.0,58417.0,2.1286067]
[1725281935600,0.0174,58418.0,58417.0,1.5286067]
[1725281937193,0.0463,58426.0,58425.0,0.085584]
[1725281937503,0.0463,58426.0,58425.0,0.566784]
[1725281938496,0.0463,58426.0,58425.0,0.567784]
[1725281939002,0.0473,58426.0,58425.0,0.568784]
[1725281942012,0.13674834,58443.0,58442.0,0.085559]
[1725281942302,0.085527,58464.0,58445.0,0.085554]
[1725281942303,0.00088,58446.0,58445.0,0.085554]
[1725281942504,0.1428,58453.0,58445.0,0.0004]
[1725281942698,0.085551,58447.0,58445.0,0.0004]
[1725281943001,0.12,58449.0,58445.0,0.0004]
[1725281943194,0.12,58449.0,58448.0,0.0004]
[1725281943395,0.12,58449.0,58445.0,0.0004]
[1725281943899,0.12,58449.0,58445.0,0.0014]
[1725281944094,0.12,58449.0,58445.0,0.0024]
[1725281944698,0.085547,58450.0,58445.0,0.1224]
[1725281944899,0.085547,58450.0,58449.0,0.0004]
[1725281946508,0.085547,58450.0,58449.0,0.0014]
[1725281946704,0.085547,58450.0,58449.0,0.0024]
[1725281948311,0.1201698,58452.0,58449.0,0.0024]
[1725281948511,0.1201698,58452.0,58451.0,0.0004]
[1725281949202,0.1201698,58452.0,58449.0,0.002]
[1725281949203,1.3189538,58452.0,58449.0,0.002]
[1725281949415,1.3189538,58452.0,58445.0,0.0004]
[1725281949416,0.085551,58448.0,58445.0,0.0004]
[1725281949618,0.119,58446.0,58445.0,0.085954]
[1725281949812,0.084551,58448.0,58445.0,0.085954]
[1725281950014,0.085552,58447.0,58445.0,0.085954]
[1725281950516,0.085552,58447.0,58445.0,0.085554]
[1725281950517,0.12,58446.0,58445.0,0.085554]
[1725281950706,0.12,58446.0,58445.0,0.086554]
[1725281951202,0.12,58446.0,58445.0,0.087554]
[1725281952011,0.12,58446.0,58436.0,0.3608]
[1725281952012,1.59408,58446.0,58436.0,0.3608]
[1725281952206,0.085566,58437.0,58436.0,0.3608]
[1725281952404,0.085566,58437.0,58424.0,0.3608]
[1725281952405,0.085584,58425.0,58424.0,0.3608]
[1725281952604,0.3608,58430.0,58424.0,0.12]
[1725281952812,0.3598,58430.0,58429.0,0.205578]
[1725281953113,0.3588,58430.0,58429.0,0.205578]
[1725281954309,0.3608,58430.0,58429.0,0.206578]
[1725281954620,0.005,58430.0,58429.0,0.207578]
[1725281954912,0.3658,58430.0,58429.0,0.207578]
[1725281955115,0.005,58430.0,58429.0,0.207578]
[1725281956108,0.007,58430.0,58429.0,0.087578]
[1725281956816,0.008,58430.0,58429.0,0.087578]
[1725281958810,0.093576,58430.0,58429.0,0.09157379]
[1725281960820,0.213576,58430.0,58429.0,0.09157379]
[1725281962615,0.093576,58430.0,58429.0,0.09157379]
[1725281964621,0.213576,58430.0,58429.0,0.00599579]
[1725281976530,0.299152,58430.0,58429.0,0.00599579]
[1725281982335,0.34106111,58430.0,58429.0,0.00599579]
[1725281983334,0.299152,58430.0,58429.0,0.00599579]
[1725281984033,0.093576,58430.0,58429.0,0.09157379]
[1725281984835,0.093576,58430.0,58429.0,0.00599579]
[1725281990240,0.13548468,58430.0,58429.0,0.00599579]
[1725281992924,0.25548468,58430.0,58429.0,0.002]
[1725281995339,0.34106068,58430.0,58429.0,0.002]
[1725281995533,0.34502794,58430.0,58429.0,0.002]
[1725281998240,0.30311926,58430.0,58429.0,0.05324083]
[1725281998439,0.38869526,58430.0,58429.0,0.05324083]
[1725281998658,0.38869526,58430.0,58429.0,0.002]
[1725282000134,1.50213526,58430.0,58429.0,0.002]
[1725282000440,1.50213526,58430.0,58424.0,0.05149753]
[1725282000441,0.256752,58425.0,58424.0,0.0002567]
[1725282000638,0.532368,58425.0,58424.0,0.0002567]
[1725282000828,0.171568,58425.0,58424.0,0.0002567]
[1725282001551,0.085984,58425.0,58424.0,0.0858417]
[1725282001843,0.085984,58425.0,58424.0,0.1348417]
[1725282002045,0.0004,58425.0,58424.0,0.1348417]
[1725282002541,0.0004,58425.0,58424.0,0.20292242]
[1725282002741,0.0044,58425.0,58424.0,0.20392242]
[1725282003039,0.0084,58425.0,58424.0,0.1368417]
[1725282012140,0.0084,58425.0,58424.0,0.3080117]
[1725282012344,0.3608,58443.0,58434.0,0.08557]
[1725282012547,0.3608,58443.0,58434.0,0.65234]
[1725282012741,0.3608,58443.0,58434.0,0.78273025]
[1725282012942,0.0274,58451.0,58434.0,1.38273025]
[1725282013143,0.112946,58451.0,58434.0,1.69056025]
[1725282013437,0.4808,58446.0,58434.0,0.56677]
[1725282014548,0.0012567,58435.0,58434.0,0.57172884]
[1725282015745,0.0012567,58435.0,58434.0,0.57272884]
[1725282030471,0.0012567,58435.0,58434.0,0.36715884]
[1725282030660,0.0868257,58435.0,58434.0,0.48715884]
[1725282031364,0.0868257,58435.0,58434.0,0.36715884]
[1725282031365,0.1723947,58435.0,58434.0,0.36715884]
[1725282031756,0.2199947,58435.0,58434.0,0.36715884]
[1725282033670,0.1344257,58435.0,58434.0,0.48715884]
[1725282034760,0.0868257,58435.0,58434.0,0.48715884]
[1725282035655,0.0012567,58435.0,58434.0,0.48715884]
[1725282036860,0.0012567,58435.0,58434.0,0.57272884]
[1725282037562,0.0012567,58435.0,58434.0,0.78836118]
[1725282038568,0.0012567,58435.0,58434.0,0.703116]
[1725282040570,0.0012567,58435.0,58434.0,1.902086]
[1725282040776,0.085543,58453.0,58434.0,1.730946]
[1725282040961,0.085545,58452.0,58450.0,0.12]
[1725282041272,0.0274,58453.0,58452.0,0.085544]
[1725282041462,0.0274,58453.0,58452.0,0.085944]
[1725282041662,0.0274,58453.0,58452.0,0.085544]
[1725282043076,0.0284,58453.0,58452.0,0.086544]
[1725282043266,0.0284,58453.0,58452.0,0.15471777]
[1725282043469,0.0284,58453.0,58452.0,0.086544]
[1725282044373,0.0284,58453.0,58452.0,0.087544]
[1725282045366,0.0284,58453.0,58452.0,0.001]
[1725282045367,0.0274,58453.0,58452.0,0.001]
[1725282045566,0.0284,58453.0,58452.0,0.002]
[1725282045873,0.0284,58453.0,58452.0,0.00605164]
[1725282046171,0.0284,58453.0,58452.0,0.002]
[1725282046767,0.113943,58453.0,58452.0,0.002]
[1725282049168,0.113943,58453.0,58452.0,0.00604069]
[1725282051665,0.0284,58453.0,58452.0,0.00604069]
[1725282051867,0.0284,58453.0,58452.0,0.09158469]
[1725282054769,0.0284,58453.0,58452.0,0.45238469]
[1725282059573,0.0284,58453.0,58452.0,0.09158469]
[1725282059784,0.0284,58453.0,58452.0,0.45238469]
[1725282060680,0.0284,58453.0,58452.0,0.50138469]
[1725282060876,0.0001698,58458.0,58457.0,0.085537]
[1725282061082,0.0001698,58458.0,58457.0,0.566737]
[1725282061374,0.0857048,58458.0,58457.0,0.3612]
[1725282061572,0.0857048,58458.0,58457.0,0.0004]
[1725282061573,0.1712398,58458.0,58457.0,0.0004]
[1725282061971,0.1712398,58458.0,58457.0,0.1204]
[1725282062171,0.1722398,58458.0,58457.0,0.1224]
[1725282064180,0.1722398,58458.0,58457.0,0.0024]
[1725282067276,0.6854398,58458.0,58457.0,0.0024]
[1725282069182,0.72732913,58458.0,58457.0,0.0024]
[1725282069974,1.41286568,58458.0,58457.0,0.0024]
[1725282071182,0.21413068,58458.0,58457.0,0.0024]
[1725282071884,0.35095274,58458.0,58457.0,0.0024]
[1725282073472,0.35095146,58458.0,58457.0,0.0024]
[1725282073674,0.1722398,58458.0,58457.0,0.07057377]
[1725282074489,0.0867048,58458.0,58457.0,0.07057377]
[1725282076190,0.0867048,58458.0,58457.0,0.0024]
[1725282077186,0.0867048,58458.0,58457.0,0.07484329]
[1725282077387,0.0867048,58458.0,58457.0,0.00653339]
[1725282078883,0.0867048,58458.0,58457.0,0.07482984]
[1725282079500,0.0867048,58458.0,58457.0,0.00653339]
[1725282080703,0.18110002,58458.0,58457.0,0.00653339]
[1725282081196,0.18110002,58458.0,58457.0,0.09207039]
[1725282081900,0.12859433,58458.0,58457.0,0.00653339]
[1725282085897,0.12859433,58458.0,58457.0,0.12653339]
[1725282086096,0.18109915,58458.0,58457.0,0.12653339]
[1725282086298,0.18109914,58458.0,58457.0,0.12653339]
[1725282088101,0.18109868,58458.0,58457.0,0.12653339]
[1725282088605,0.0867048,58458.0,58457.0,0.12653339]
[1725282091521,0.0867048,58458.0,58457.0,0.17773613]
[1725282092017,0.0867048,58458.0,58457.0,0.12653339]
[1725282092409,0.0867048,58458.0,58457.0,0.17343339]
[1725282093015,0.3608,58475.0,58457.0,1.35490371]
[1725282093214,0.3608,58475.0,58474.0,0.12]
[1725282093410,0.3608,58475.0,58474.0,0.1204]
[1725282093925,0.44631,58475.0,58474.0,0.1204]
[1725282094810,0.56631,58475.0,58474.0,0.0004]
[1725282095012,0.20551,58475.0,58474.0,0.0014]
[1725282095722,0.08551,58475.0,58474.0,0.0024]
[1725282108718,0.12738634,58475.0,58474.0,0.0024]
[1725282109327,0.12738634,58475.0,58474.0,0.1224]
[1725282110718,0.08551,58475.0,58474.0,0.1224]
[1725282113336,0.08551,58475.0,58474.0,0.207912]
[1725282117530,0.539403,58481.0,58477.0,0.085507]
[1725282117531,0.085507,58478.0,58477.0,0.085507]
[1725282117829,0.085507,58478.0,58477.0,0.205907]
[1725282118133,0.085507,58478.0,58477.0,0.0004]
[1725282118134,0.171014,58478.0,58477.0,0.0004]
[1725282118632,0.171014,58478.0,58477.0,0.0014]
[1725282120325,0.171014,58478.0,58477.0,0.0024]
[1725282123136,0.171014,58478.0,58477.0,0.0064731]
[1725282125636,0.26537773,58478.0,58477.0,0.0064731]
[1725282125841,0.469307,58478.0,58477.0,0.0024]
[1725282126030,0.35088473,58478.0,58477.0,0.0024]
[1725282126237,0.35088473,58478.0,58469.0,0.3610567]
[1725282126238,0.256554,58470.0,58469.0,0.004359]
[1725282126434,0.47131773,58470.0,58469.0,0.004359]
[1725282126639,0.62526481,58470.0,58469.0,0.0002567]
[1725282126830,0.51891773,58470.0,58469.0,0.0002567]
[1725282127439,0.39891773,58470.0,58469.0,0.0002567]
[1725282127641,0.39891773,58470.0,58469.0,0.0012567]
[1725282127840,0.39891773,58470.0,58469.0,0.0022567]
[1725282128044,0.35131773,58470.0,58469.0,0.0022567]
[1725282128533,0.29882956,58470.0,58469.0,0.0022567]
[1725282129736,1.58440585,58470.0,58469.0,7e-07]
[1725282130335,1.6457548,58470.0,58469.0,7e-07]
[1725282130538,1.58440585,58470.0,58469.0,7e-07]
[1725282130743,1.77240734,58470.0,58469.0,7e-07]
[1725282130944,1.77242594,58470.0,58469.0,7e-07]
[1725282131548,1.83778201,58470.0,58469.0,7e-07]
[1725282131742,0.38983304,58470.0,58469.0,7e-07]
[1725282131938,0.90291304,58470.0,58469.0,7e-07]
[1725282132138,0.38983304,58470.0,58469.0,7e-07]
[1725282132339,1.50291304,58470.0,58469.0,7e-07]
[1725282132538,1.0736863,58470.0,58469.0,7e-07]
[1725282132744,1.50291304,58470.0,58469.0,7e-07]
[1725282133650,1.63563104,58470.0,58469.0,7e-07]
[1725282133844,1.45572259,58470.0,58469.0,7e-07]
[1725282135149,2.17732259,58470.0,58469.0,7e-07]
[1725282136650,1.57732259,58470.0,58469.0,7e-07]
[1725282136944,1.66284059,58470.0,58469.0,7e-07]
[1725282137152,1.57732259,58470.0,58469.0,7e-07]
[1725282137453,1.06424259,58470.0,58469.0,7e-07]
[1725282137659,1.14976059,58470.0,58469.0,7e-07]
[1725282140755,1.19164679,58470.0,58469.0,7e-07]
[1725282141257,1.24414831,58470.0,58469.0,7e-07]
[1725282141649,1.19164679,58470.0,58469.0,7e-07]
[1725282142452,0.47004679,58470.0,58469.0,7e-07]
[1725282142948,1.19164679,58470.0,58469.0,7e-07]
[1725282143270,1.32815283,58470.0,58469.0,7e-07]
[1725282143550,1.19164679,58470.0,58469.0,7e-07]
[1725282143957,1.32815464,58470.0,58469.0,7e-07]
[1725282144164,1.24263664,58470.0,58469.0,7e-07]
[1725282144468,0.9349222,58470.0,58469.0,7e-07]
[1725282144667,0.93491993,58470.0,58469.0,7e-07]
[1725282145853,0.48860193,58470.0,58469.0,0.1200007]
[1725282147158,0.48860193,58470.0,58469.0,7e-07]
[1725282147859,0.48860193,58470.0,58469.0,0.1200007]
[1725282148359,0.12780193,58470.0,58469.0,0.1200007]
[1725282148752,0.085918,58470.0,58469.0,0.1200007]
[1725282149551,0.085918,58470.0,58469.0,7e-07]
[1725282150551,0.085918,58470.0,58469.0,0.1200007]
[1725282154154,0.085918,58470.0,58469.0,0.2055197]
[1725282154556,0.0004,58470.0,58469.0,0.2055197]
[1725282155858,0.04227761,58470.0,58469.0,0.5663197]
[1725282156664,0.12779561,58470.0,58469.0,7e-07]
[1725282156857,0.58322585,58470.0,58469.0,7e-07]
[1725282157060,0.48859561,58470.0,58469.0,7e-07]
[1725282157254,0.54108996,58470.0,58469.0,7e-07]
[1725282158961,0.54109183,58470.0,58469.0,7e-07]
[1725282159167,0.18029183,58470.0,58469.0,7e-07]
[1725282159362,0.28150715,58470.0,58469.0,7e-07]
[1725282159569,0.33400094,58470.0,58469.0,7e-07]
[1725282160569,0.18029183,58470.0,58469.0,7e-07]
[1725282161765,0.12779804,58470.0,58469.0,7e-07]
[1725282162066,0.18029021,58470.0,58469.0,7e-07]
[1725282162665,0.18029021,58470.0,58469.0,0.1200007]
[1725282163857,0.085918,58470.0,58469.0,0.1200007]
[1725282165570,0.171436,58470.0,58469.0,7e-07]
[1725282168873,0.256954,58470.0,58469.0,7e-07]
[1725282170871,0.29883611,58470.0,58469.0,7e-07]
[1725282174670,0.43547466,58470.0,58469.0,7e-07]
[1725282177176,0.256954,58470.0,58469.0,7e-07]
[1725282183484,0.171436,58470.0,58469.0,7e-07]
[1725282184285,0.085918,58470.0,58469.0,0.0855197]
[1725282185679,0.085918,58470.0,58469.0,7e-07]
[1725282191889,0.171436,58470.0,58469.0,7e-07]
[1725282194081,0.21331769,58470.0,58469.0,7e-07]
[1725282194987,0.26581355,58470.0,58469.0,7e-07]
[1725282196491,0.43656065,58470.0,58469.0,7e-07]
[1725282196994,0.35133155,58470.0,58469.0,7e-07]
[1725282200498,0.50528525,58470.0,58469.0,7e-07]
[1725282200890,0.35133155,58470.0,58469.0,7e-07]
[1725282201094,0.256954,58470.0,58469.0,7e-07]
[1725282203198,1.455552,58470.0,58469.0,7e-07]
[1725282203507,1.455552,58470.0,58464.0,0.0002567]
[1725282203508,1.198998,58470.0,58464.0,4e-07]
[1725282203810,1.198998,58470.0,58452.0,0.05120356]
[1725282203811,0.256629,58453.0,58452.0,0.05120356]
[1725282203995,0.171096,58449.0,58448.0,0.05120356]
[1725282204197,0.1204,58449.0,58445.0,0.00411312]
[1725282204396,0.1204,58449.0,58443.0,0.45880356]
[1725282204397,0.085556,58444.0,58443.0,0.45880356]
[1725282204696,0.084556,58444.0,58443.0,0.45880356]
[1725282205095,0.084556,58444.0,58443.0,0.4076]
[1725282205894,0.084556,58444.0,58443.0,0.5276]
[1725282206102,0.083556,58444.0,58443.0,0.53162051]
[1725282206300,0.0006567,58449.0,58445.0,0.085554]
[1725282206499,0.0862047,58449.0,58448.0,0.1204]
[1725282206800,0.0006567,58449.0,58448.0,0.1204]
[1725282206989,0.0006567,58449.0,58448.0,0.5276]
[1725282207190,0.0006567,58449.0,58448.0,0.61315]
[1725282207598,0.0106567,58449.0,58448.0,0.61315]
[1725282207805,0.0226567,58449.0,58448.0,0.61315]
[1725282208002,0.0226567,58449.0,58448.0,0.25235]
[1725282208404,0.0256567,58449.0,58448.0,0.25235]
[1725282209198,0.0256567,58449.0,58448.0,0.1668]
[1725282209502,0.0256567,58449.0,58448.0,0.0468]
[1725282210709,0.1112047,58449.0,58448.0,0.0468]
[1725282212100,0.1112047,58449.0,58448.0,0.0004]
[1725282212508,0.3167527,58449.0,58448.0,0.0004]
[1725282214107,0.4023007,58449.0,58448.0,0.0004]
[1725282214796,0.4958007,58449.0,58448.0,0.0004]
[1725282216213,0.4968007,58449.0,58448.0,0.0014]
[1725282216608,0.4848007,58449.0,58448.0,0.0014]
[1725282216804,0.4988007,58449.0,58448.0,0.0024]
[1725282218108,1.6260807,58449.0,58448.0,0.0034]
[1725282218325,1.63004837,58449.0,58448.0,0.0034]
[1725282219129,1.63004837,58449.0,58438.0,0.0002567]
[1725282219130,0.256689,58439.0,58438.0,0.0002567]
[1725282219431,0.617889,58439.0,58438.0,0.0002567]
[1725282219934,0.532326,58439.0,58438.0,0.0002567]
[1725282220524,0.544326,58439.0,58438.0,0.0012567]
[1725282220826,0.544326,58439.0,58438.0,0.0022567]
[1725282220827,0.555326,58439.0,58438.0,0.0022567]
[1725282222930,0.558326,58439.0,58438.0,0.0022567]
[1725282223317,0.546326,58439.0,58438.0,0.0012567]
[1725282223521,0.560326,58439.0,58438.0,0.0022567]
[1725282227537,0.474763,58439.0,58438.0,0.0878217]
[1725282228531,0.0284,58439.0,58438.0,1.5619817]
[1725282229124,0.0284,58439.0,58438.0,1.62159715]
[1725282229528,0.0284,58439.0,58438.0,1.62556165]
[1725282229730,0.0284,58439.0,58438.0,1.57435809]
[1725282230240,0.0284,58439.0,58438.0,1.65992309]
[1725282230425,0.0284,58439.0,58438.0,1.57435809]
[1725282230834,0.0284,58439.0,58438.0,1.65992309]
[1725282231032,0.0006567,58449.0,58438.0,1.57435809]
[1725282231235,0.0006567,58449.0,58448.0,0.44635]
[1725282231629,0.0006567,58449.0,58448.0,0.54205]
[1725282231825,0.0006567,58449.0,58448.0,0.59005]
[1725282232238,0.0002567,58449.0,58448.0,0.59005]
[1725282232437,0.0032567,58449.0,58448.0,0.59005]
[1725282233140,0.0002567,58449.0,58448.0,0.59005]
[1725282233332,0.0032567,58449.0,58448.0,0.59105]
[1725282233647,0.0062567,58449.0,58448.0,0.49415]
[1725282234041,0.0062567,58449.0,58448.0,0.44835]
[1725282235438,0.0062567,58449.0,58448.0,0.08755]
[1725282236446,0.0918047,58449.0,58448.0,0.002]
[1725282237038,0.1773527,58449.0,58448.0,0.002]
[1725282241856,0.5381527,58449.0,58448.0,0.002]
[1725282243054,0.1773527,58449.0,58448.0,0.002]
[1725282243248,0.5381527,58449.0,58448.0,0.002]
[1725282245055,0.085563,58439.0,58438.0,0.0002567]
[1725282245252,0.171126,58439.0,58438.0,0.0002567]
[1725282245850,0.085563,58439.0,58438.0,0.0002567]
[1725282246056,0.171126,58439.0,58438.0,0.0002567]
[1725282246259,0.085563,58439.0,58438.0,0.0002567]
[1725282246462,0.171126,58439.0,58438.0,0.0002567]
[1725282246958,0.175126,58439.0,58438.0,0.0002567]
[1725282247652,0.089563,58439.0,58438.0,0.0002567]
[1725282247856,0.175126,58439.0,58438.0,0.0002567]
[1725282248859,0.179126,58439.0,58438.0,0.0002567]
[1725282249570,0.179126,58439.0,58427.0,0.05101874]
[1725282249571,1.24988908,58439.0,58427.0,0.05101874]
[1725282249861,1.24988908,58439.0,58426.0,0.3608]
[1725282249862,0.256743,58427.0,58426.0,0.3608]
[1725282250361,0.133281,58427.0,58426.0,0.3608]
[1725282250657,0.085581,58427.0,58426.0,0.3608]
[1725282252851,0.093581,58427.0,58426.0,0.3618]
[1725282253252,0.093581,58427.0,58426.0,0.3628]
[1725282253253,0.106581,58427.0,58426.0,0.3628]
[1725282253744,0.106581,58427.0,58426.0,0.002]
[1725282254852,0.093581,58427.0,58426.0,0.001]
[1725282255048,0.106581,58427.0,58426.0,0.00611394]
[1725282255248,0.106581,58427.0,58426.0,0.002]
[1725282255969,0.226581,58427.0,58426.0,0.002]
[1725282257550,0.312162,58427.0,58426.0,0.002]
[1725282260163,0.397743,58427.0,58426.0,0.002]
[1725282260957,0.397743,58427.0,58421.0,7e-07]
[1725282260958,0.256764,58422.0,58421.0,7e-07]
[1725282261162,0.737564,58422.0,58421.0,7e-07]
[1725282261364,1.851084,58422.0,58421.0,7e-07]
[1725282261761,0.737564,58422.0,58421.0,7e-07]
[1725282261961,0.817564,58422.0,58421.0,7e-07]
[1725282262155,0.749976,58422.0,58421.0,0.0020007]
[1725282263659,0.549976,58422.0,58421.0,0.0020007]
[1725282264353,0.551976,58422.0,58421.0,0.0020007]
[1725282265057,0.466388,58422.0,58421.0,0.0020007]
[1725282265656,0.105588,58422.0,58421.0,0.0020007]
[1725282266565,0.305588,58422.0,58421.0,0.0020007]
[1725282270060,0.391176,58422.0,58421.0,0.0020007]
[1725282270259,0.751976,58422.0,58421.0,0.0020007]
[1725282271164,0.085606,58410.0,58409.0,0.184607]
[1725282272364,0.085606,58410.0,58409.0,0.185607]
[1725282272569,0.094606,58410.0,58409.0,0.1896855]
[1725282273671,0.009,58410.0,58409.0,0.1896855]
[1725282273974,0.019,58410.0,58409.0,0.1906855]
[1725282274270,0.019,58410.0,58409.0,0.24170424]
[1725282276277,0.019,58410.0,58409.0,0.1906855]
[1725282277974,0.019,58410.0,58409.0,0.0916855]
[1725282278179,0.104606,58410.0,58409.0,0.14289154]
[1725282279365,0.104606,58410.0,58409.0,0.0916855]
[1725282282476,0.104606,58410.0,58409.0,0.0060785]
[1725282282677,0.190212,58410.0,58409.0,0.05734774]
[1725282282981,0.190212,58410.0,58409.0,0.0060785]
[1725282283774,0.085613,58405.0,58404.0,0.0002567]
[1725282284178,0.171226,58405.0,58404.0,0.0002567]
[1725282285383,0.176226,58405.0,58404.0,0.0002567]
[1725282286286,0.181226,58405.0,58404.0,0.0002567]
[1725282289385,0.627639,58405.0,58404.0,0.0002567]
[1725282294582,0.747639,58405.0,58398.0,0.05531469]
[1725282294783,0.171244,58399.0,58398.0,0.05531469]
[1725282295082,0.171244,58399.0,58397.0,0.0048]
[1725282295083,0.171246,58398.0,58397.0,0.0048]
[1725282295283,0.264746,58398.0,58397.0,0.0048]
[1725282295786,0.350369,58398.0,58397.0,0.0048]
[1725282296385,0.349369,58398.0,58397.0,0.0048]
[1725282296985,0.363369,58398.0,58397.0,0.0058]
[1725282297175,0.362369,58398.0,58397.0,0.0058]
[1725282297984,0.376369,58398.0,58397.0,0.0068]
[1725282299485,0.38036086,58398.0,58397.0,0.0068]
[1725282300596,0.38036086,58398.0,58374.0,0.36933646]
[1725282300597,0.085654,58377.0,58374.0,0.36933646]
[1725282300779,0.085654,58377.0,58375.0,0.1428]
[1725282300980,0.28565,58380.0,58378.0,0.085652]
[1725282301483,0.08565,58380.0,58379.0,0.085651]
[1725282303890,0.28565,58380.0,58379.0,0.085651]
[1725282304077,0.29765,58380.0,58379.0,0.086651]
[1725282304689,0.29865,58380.0,58379.0,0.086651]
[1725282305394,0.29865,58380.0,58379.0,0.087651]
[1725282305395,0.67145,58380.0,58379.0,0.087651]
[1725282306691,0.31065,58380.0,58379.0,0.087651]
[1725282307385,0.26819848,58380.0,58379.0,0.13878847]
[1725282307585,0.26819848,58380.0,58379.0,0.05313747]
[1725282308185,0.26819848,58380.0,58379.0,0.002]
[1725282308793,0.26819848,58380.0,58379.0,0.087651]
[1725282309690,0.0254,58380.0,58379.0,0.15592241]
[1725282309892,0.0254,58380.0,58379.0,0.087651]
[1725282310897,0.2254,58380.0,58379.0,0.087651]
[1725282311393,0.31105,58380.0,58379.0,0.002]
[1725282311588,0.67185,58380.0,58379.0,0.002]
[1725282311790,0.7575,58380.0,58379.0,0.002]
[1725282312202,0.84315,58380.0,58379.0,0.002]
[1725282315305,0.085669,58367.0,58366.0,0.0511633]
[1725282315494,0.2004,58367.0,58363.0,0.0511633]
[1725282315689,0.2004,58364.0,58362.0,0.0511633]
[1725282315895,0.0004,58363.0,58362.0,0.0511633]
[1725282316092,0.0004,58363.0,58362.0,0.685676]
[1725282316290,0.0004,58367.0,58366.0,0.08567]
[1725282316691,0.0014,58367.0,58366.0,1.01162875]
[1725282317105,0.0014,58367.0,58366.0,1.56047]
[1725282317402,0.0004,58367.0,58366.0,1.56047]
[1725282317597,0.0004,58367.0,58366.0,0.96047]
[1725282318303,0.0024,58367.0,58366.0,0.96047]
[1725282318505,0.0024,58367.0,58366.0,0.59967]
[1725282318809,0.0024,58367.0,58366.0,0.66788035]
[1725282318993,0.0024,58367.0,58366.0,0.08567]
[1725282319617,0.0044,58367.0,58366.0,0.08567]
[1725282320307,0.08567,58366.0,58365.0,0.05116641]
[1725282320504,0.08567,58366.0,58362.0,0.08976148]
[1725282320505,0.0004,58366.0,58363.0,0.05116641]
[1725282320707,0.085674,58363.0,58362.0,0.13684241]
[1725282320900,0.085674,58363.0,58358.0,0.04927902]
[1725282320901,0.2004,58363.0,58358.0,0.05117437]
[1725282321098,0.2004,58363.0,58349.0,0.0852886]
[1725282321099,0.2004,58359.0,58353.0,0.41197437]
[1725282321301,0.0465,58362.0,58353.0,0.3608]
[1725282321302,0.0004,58354.0,58353.0,0.3608]
[1725282321610,0.2,58355.0,58353.0,0.3608]
[1725282322003,0.085688,58354.0,58353.0,0.42901035]
[1725282322513,0.085689,58353.0,58352.0,0.07222395]
[1725282322810,0.086089,58353.0,58350.0,0.085692]
[1725282323014,0.0004,58351.0,58350.0,0.085692]
[1725282323710,0.085689,58353.0,58350.0,0.085692]
[1725282324004,0.085689,58353.0,58350.0,0.086092]
[1725282324607,0.228,58355.0,58350.0,0.0004]
[1725282324902,0.028,58355.0,58352.0,0.3608]
[1725282325109,0.014,58353.0,58352.0,0.446491]
[1725282325407,0.028,58353.0,58352.0,0.446491]
[1725282325907,0.014,58355.0,58352.0,0.446491]
[1725282326105,0.025,58355.0,58353.0,0.085689]
[1725282326409,0.011,58355.0,58353.0,0.085689]
[1725282327310,0.025,58355.0,58353.0,0.085689]
[1725282327508,0.025,58355.0,58354.0,0.085688]
[1725282327807,0.014,58355.0,58354.0,0.085688]
[1725282328402,0.014,58355.0,58354.0,0.446488]
[1725282328613,0.028,58355.0,58354.0,0.085688]
[1725282328912,0.313686,58355.0,58354.0,0.06819551]
[1725282329108,0.313686,58355.0,58350.0,0.086094]
[1725282329109,0.085688,58354.0,58350.0,0.086094]
[1725282329407,0.228,58355.0,58350.0,0.086094]
[1725282329408,0.2,58351.0,58350.0,0.086094]
[1725282329599,0.028,58355.0,58352.0,0.08569]
[1725282329600,0.2,58354.0,58352.0,0.08569]
[1725282329805,0.085689,58353.0,58352.0,0.08569]
[1725282331702,0.099689,58353.0,58352.0,0.08569]
[1725282332513,0.113689,58353.0,58352.0,0.08569]
[1725282333806,0.085691,58352.0,58351.0,0.17092729]
[1725282334002,0.086091,58352.0,58351.0,0.085692]
[1725282335810,0.114091,58352.0,58351.0,0.085692]
[1725282336013,0.0284,58352.0,58351.0,1.41562637]
[1725282336313,0.085677,58362.0,58361.0,0.085677]
[1725282336515,0.446463,58371.0,58361.0,0.5612]
[1725282336713,0.3608,58371.0,58367.0,0.086069]
[1725282337911,0.08592395,58368.0,58367.0,0.0004]
[1725282338407,0.09992395,58368.0,58367.0,0.0004]
[1725282338607,0.29992395,58368.0,58367.0,0.0004]
[1725282338806,0.31192395,58368.0,58367.0,0.0014]
[1725282339808,0.31192395,58368.0,58367.0,0.06963677]
[1725282340317,0.31192395,58368.0,58367.0,0.0014]
[1725282340815,0.39759095,58368.0,58367.0,0.0014]
[1725282341412,0.39759095,58368.0,58367.0,0.06963677]
[1725282342612,0.31192395,58368.0,58367.0,0.06963677]
[1725282342804,0.31192395,58368.0,58367.0,0.0014]
[1725282345011,0.22625695,58368.0,58361.0,0.06874626]
[1725282345214,0.22625695,58368.0,58362.0,6.9e-07]
[1725282345215,0.085674,58363.0,58362.0,6.9e-07]
[1725282345418,0.617828,58362.0,58361.0,0.0004]
[1725282345806,0.618228,58362.0,58361.0,0.0004]
[1725282346213,0.618228,58362.0,58354.0,0.06834626]
[1725282346214,0.171372,58355.0,58354.0,0.06834626]
[1725282346411,0.445886,58355.0,58354.0,0.06835604]
[1725282346821,0.085692,58351.0,58350.0,0.08604063]
[1725282347021,0.086092,58351.0,58350.0,0.0008]
[1725282347323,0.085092,58351.0,58350.0,0.08604063]
[1725282347512,0.085092,58351.0,58350.0,0.21662931]
[1725282347824,0.085092,58351.0,58350.0,0.08604063]
[1725282348024,0.098092,58351.0,58350.0,0.2176298]
[1725282348417,0.098092,58351.0,58350.0,0.21762994]
[1725282349221,0.098092,58351.0,58350.0,0.0018]
[1725282349428,0.098092,58351.0,58350.0,0.08704063]